Cogmind - Beta 17.1 @@@ ROGUE MODE // 2026.09.22 @ 20:48:54 Player: deadbabe Result: Destroyed by C-35 Carver with Carbide Saw Performance ------------- Evolutions (5) 2500 Regions Visited (12) 2400 Robots Destroyed (86) 430 Value Destroyed (3401) 3401 Prototype IDs (11) 220 Alien Tech Used (0) 0 Bonus (5013) 5013 TOTAL SCORE: 13964 Bonus ------- High Alert Combat Kills 709 Follower Combat Kills 2427 Network Hubs Disabled 400 Registered with UFD 300 Met Optimus in HQ 500 Built Enhanced Grunts 300 Met R17 at Cetus 500 Friendly Fire -123 Cogmind --------- Core Integrity 0/1000 Matter 49/300 Energy 70/100 System Corruption 20% Temperature Cool (0) Movement Rolling (80) Location -5/Factory Parts ------- > --- POWER (1) -------- (None) > --- PROPULSION (6) --- Wheel > --- UTILITY (6) ------ (None) > --- WEAPON (4) ------- (None) > --- INVENTORY (5) ---- Mapping Drone Bay (3/3) Peak State ------------ > --- POWER ------------ Quantum Reactor > --- PROPULSION ------- Improved Medium Treads Improved Medium Treads Improved Medium Treads Armored Medium Treads Centrium Heavy Treads > --- UTILITY ---------- Scrap Suit Advanced Cooling System Large Storage Unit Advanced Visual Processing Unit Centrium Medium Armor Plating > --- WEAPON ----------- KE Penetrator Improved KE Penetrator Advanced KE Penetrator Advanced KE Penetrator > --- INVENTORY -------- Quantum Reactor Quantum Reactor Improved Medium Treads Armored Huge Wheel High-capacity Matter Pod Centrium Medium Armor Plating Centrium Medium Armor Plating Mapping Drone Bay Precision Assault Rifle Magnetic Acceleration Cannon Enhanced Gauss Cannon [Rating: 111] Favorites ----------- Power Light Nuclear Core Engine Heavy Ion Engine Power Core Light Nuclear Core Reactor Quantum Reactor Propulsion Carbon-fiber Leg Treads Improved Medium Treads Leg Carbon-fiber Leg Wheel Compact Wheel Utility Large Storage Unit Device Sensor Array Storage Large Storage Unit Processor Advanced Visual Processing Unit Protection Centrium Medium Armor Plating Weapon Mini Grenade Launcher Energy Gun Thermic Laser Energy Cannon Heavy Particle Cannon Ballistic Gun Advanced KE Penetrator Ballistic Cannon Enhanced Gauss Cannon Launcher Mini Grenade Launcher Special Weapon Mining Laser Impact Weapon Heavy Mace Build | -11 -10 -10 -9 -9 -9 -9 -6 -6 -6 -6 -6 -5 ------- Run | Yrd Mat Min Mat Sto Rec Scr Fac Ext Cet Arc Hub Fac Slots Evolved 10 | . . . 2 . . . 6 . . . . 2 Power . | . . . . . . . . . . . . . Propulsion 4 | . . . 1 . . . 3 . . . . . Utility 4 | . . . 1 . . . 2 . . . . 1 Weapon 2 | . . . . . . . 1 . . . . 1 Parts Attached 94 | 7 . 6 4 11 5 4 6 20 8 1 2 20 Power 11 | 1 . 1 1 1 . . . 3 1 . 1 2 Engine 6 | 1 . 1 . 1 . . . 3 . . . . Core 2 | . . . 1 . . . . . . . 1 . Reactor 3 | . . . . . . . . . 1 . . 2 Propulsion 30 | 2 . 2 1 4 . . 3 9 . . . 9 Treads 10 | 2 . . 1 1 . . . . . . . 6 Leg 16 | . . . . 3 . . 3 9 . . . 1 Wheel 4 | . . 2 . . . . . . . . . 2 Hover . | . . . . . . . . . . . . . Flight . | . . . . . . . . . . . . . Utility 22 | 2 . 1 1 . 2 3 3 5 1 . . 4 Device 9 | . . 1 1 . 1 2 2 1 . . . 1 Storage 4 | 2 . . . . 1 . . . . . . 1 Processor 1 | . . . . . . . . 1 . . . . Hackware . | . . . . . . . . . . . . . Protection 8 | . . . . . . 1 1 3 1 . . 2 Artifact . | . . . . . . . . . . . . . Weapon 31 | 2 . 2 1 6 3 1 . 3 6 1 1 5 Energy Gun 5 | 1 . . . 1 . . . 2 1 . . . Energy Cannon 3 | . . 1 . 1 . 1 . . . . . . Ballistic Gun 17 | 1 . . 1 3 1 . . 1 4 1 1 4 Ballistic Cannon 2 | . . . . . . . . . 1 . . 1 Launcher 2 | . . . . . 2 . . . . . . . Special Weapon 1 | . . 1 . . . . . . . . . . Impact Weapon 1 | . . . . 1 . . . . . . . . Slashing Weapon . | . . . . . . . . . . . . . Piercing Weapon . | . . . . . . . . . . . . . Special Melee Weapon . | . . . . . . . . . . . . . Unidentified Prototypes 11 | . . . . 4 . . . . 3 . 1 3 Corrupted Parts 7 | . . . . . . . . 2 3 . . 2 System Corruption 37 | . . . . . . . . 12 14 . . 11 Parts Lost 28 | . . 3 1 2 5 . . 2 . . . 15 Power 2 | . . . . . 1 . . . . . . 1 Propulsion 12 | . . 2 1 2 1 . . 1 . . . 5 Utility 4 | . . . . . 1 . . . . . . 3 Weapon 10 | . . 1 . . 2 . . 1 . . . 6 Highest Loss Streak 10 | . . 3 1 1 4 . . 1 . . . 10 To Critical Strikes . | . . . . . . . . . . . . . Average Backups 11 | 2 6 6 6 7 8 14 12 13 14 14 14 9 Power 1 | . 1 1 1 2 2 1 1 1 1 2 2 1 Propulsion 1 | 1 3 2 . . . . . 1 4 5 5 1 Utility 4 | . 1 1 2 2 2 6 7 6 4 4 4 3 Weapon 4 | . 1 1 2 3 3 6 4 4 3 3 3 2 Tool/Special . | . . . . . . . . . . . . . Unused Backups 23 | . . 1 . 1 . 7 . 9 3 . 1 1 Power 2 | . . . . . . . . 1 1 . . . Propulsion 2 | . . 1 . . . . . 1 . . . . Utility 9 | . . . . 1 . 4 . 2 1 . . 1 Weapon 10 | . . . . . . 3 . 5 1 . 1 . Tool/Special . | . . . . . . . . . . . . . Average Slot Usage (%) 85 | . 85 89 84 86 89 81 68 93 93 93 91 79 Engine 3 | . 14 14 8 8 8 . . 5 1 . . . Core 3 | . . . 2 2 . 9 6 . . . . . Reactor 1 | . . . . . . . . . 4 6 5 4 Treads 4 | . 28 26 4 6 . . . . . . . 24 Leg 23 | . . . . 8 29 22 23 39 40 40 38 1 Device 11 | . . 6 18 22 19 11 11 8 6 6 6 9 Storage 8 | . 14 14 11 11 11 11 6 6 6 6 6 4 Processor 1 | . . . . . . . . 2 6 6 6 4 Protection 4 | . . . . . . 4 . 8 6 6 6 5 Energy Gun 1 | . 14 12 . . . . . 3 . . . . Energy Cannon 4 | . . 1 11 3 . 8 6 4 . . . . Ballistic Gun 7 | . 14 12 11 16 16 . . . 18 20 20 18 Launcher 5 | . . . . . 3 13 6 2 . . . . Impact Weapon 1 | . . . . 2 . . 5 6 . . . . Peak Build Rating 111 | 7 6 13 15 17 16 28 50 59 80 81 81 111 Average Rating 39 | 5 6 7 14 15 13 20 39 53 75 80 79 98 On Entrance 33 | . 6 6 13 15 15 11 28 50 59 80 81 76 Avg Prop Armor Cover (%) 5 | . . . 3 3 . . . 3 . . . 19 Naked Turns 31 | . . . . . . . . . . . . 31 Heaviest Build 75 | 11 11 23 23 22 36 40 54 60 68 68 68 75 Greatest Support 197 | 40 40 40 26 30 30 20 62 93 93 93 93 197 Greatest Overweight (x) 6 | . . 1 1 6 1 1 2 1 . . . 2 Average Overweight (x) . | . . . . . . 1 . . . . . . Largest Inventory Capacity 15 | 8 8 8 8 8 15 15 15 15 15 15 15 15 Average Capacity 13 | 7 8 8 8 8 13 15 15 15 15 15 15 14 Most Carried 15 | 6 6 8 7 8 10 15 15 15 15 15 15 15 Average Carried 12 | 2 6 6 6 7 8 14 14 14 14 15 15 10 Final Capacity 15 | 8 8 8 8 8 15 15 15 15 15 15 15 5 Final Carried 15 | 6 6 6 7 8 10 15 15 15 15 15 15 1 Scrap Suit Usage (%) 23 | . . . . . . . . 17 100 100 100 85 Parts Cannibalized 13 | . . . . . . . . 3 . . 1 9 Class Distribution -------------------- 48% | Mutant 32% | Scavenger-Mutant 18% | Scavenger-Tank Dominant Class ---------------- Mutant | -10/Materials Mutant | -10/Mines Mutant | -9/Materials Mutant | -9/Storage Scavenger-Mutant | -9/Recycling Mutant | -9/Scraptown Scavenger-Mutant | -6/Factory Scavenger-Mutant | -6/Extension Scavenger-Tank | -6/Cetus Scavenger-Tank | -6/Archives Scavenger-Tank | -6/Hub_04(d) Scavenger-Tank | -5/Factory Resources | -11 -10 -10 -9 -9 -9 -9 -6 -6 -6 -6 -6 -5 ----------- Run | Yrd Mat Min Mat Sto Rec Scr Fac Ext Cet Arc Hub Fac Matter Collected 4028 | 291 . 69 61 202 79 108 206 1306 278 73 70 1285 Remotely . | . . . . . . . . . . . . . Salvage Created 3927 | 142 . 44 147 351 135 . 256 660 154 148 302 1588 Parts 172 | 6 . . 9 26 8 . 4 21 4 9 10 75 Haulers Intercepted 2 | . . . . . . . . . . . 2 . Recyclers Shooed 3 | 1 . 1 . 1 . . . . . . . . Parts Field Recycled . | . . . . . . . . . . . . . Retrieved Matter . | . . . . . . . . . . . . . Parts Self-Destructed . | . . . . . . . . . . . . . Prevented . | . . . . . . . . . . . . . Parts Restored . | . . . . . . . . . . . . . Kills | -11 -10 -10 -9 -9 -9 -9 -6 -6 -6 -6 -6 -5 ------- Run | Yrd Mat Min Mat Sto Rec Scr Fac Ext Cet Arc Hub Fac Combat Hostiles Destroyed 61 | . . 4 3 10 3 . 5 10 2 2 . 22 Guns 40 | . . 3 1 10 2 . . 2 2 2 . 18 Cannons 10 | . . 1 2 . . . 1 3 . . . 3 AOE 10 | . . . . . 1 . 4 4 . . . 1 Classes Destroyed 15 | 2 . 2 1 2 1 . 1 2 1 . 1 2 Worker 4 | . . . . . . . . 1 . . 2 1 Builder 7 | . . . . . 1 . . 1 . . 1 4 Tunneler 4 | 2 . . . . . . . 1 . . 1 . Hauler 2 | . . . . . . . . . . . 2 . Recycler 5 | 1 . . . . . . 1 1 . . . 2 Mechanic 1 | . . . . 1 . . . . . . . . Watcher 4 | . . . . . . . . . 1 . . 3 Swarmer 14 | . . . . 4 . . . 5 . . . 5 Grunt 21 | . . 2 2 3 . . 3 3 . . . 8 Brawler 1 | . . . . . . . 1 . . . . . Duelist 1 | . . . . . . . . 1 . . . . Sentry 13 | . . . 1 3 3 . 1 1 . 2 . 2 Hunter 4 | . . . . . . . . . . . . 4 Programmer 3 | . . . . . . . . . . . . 3 Cetus Guard 2 | . . . . . . . . . 2 . . . Assembled 2 | . . 2 . . . . . . . . . . Best Kill Streak 10 | 3 . 2 3 5 2 . 5 4 3 2 4 10 Combat Bots Only 7 | . . 2 3 4 1 . 4 4 2 2 . 7 Max Kills in Single Turn 3 | 1 . 1 1 2 1 . 1 2 2 1 2 3 Gunslinging . | . . . . . . . . . . . . . Exploded 2 | . . . . . 1 . 1 2 . . . 1 Melee . | . . . . . . . . . . . . . Uniques/NPCs Destroyed . | . . . . . . . . . . . . . Combat | -11 -10 -10 -9 -9 -9 -9 -6 -6 -6 -6 -6 -5 -------- Run | Yrd Mat Min Mat Sto Rec Scr Fac Ext Cet Arc Hub Fac Hostile Shots Fired 819 | . . 72 25 67 46 . 54 164 11 3 4 373 Missed 243 | . . 15 6 15 17 . 27 61 2 . 2 98 Hits 576 | . . 57 19 52 29 . 27 103 9 3 2 275 Melee 18 | . . 2 . . . . . 2 . . . 14 Projectile 558 | . . 55 19 52 29 . 27 101 9 3 2 261 AOE 3 | . . . . . . . . . . . . 3 Critical Strikes 29 | . . 1 1 1 2 . 1 5 4 . . 14 Actively Blocked 2 | . . . . . . . . 2 . . . . Part Disruptions 5 | . . . . . . . . 4 . . . 1 Damage Taken 9548 | . . 723 283 643 444 . 323 1132 217 118 226 5439 Core 1534 | . . 141 47 142 76 . 56 69 . . . 1003 Absorbed by Shields 462 | . . . . . . . . 412 50 . . . Reduced by Siege Mode 56 | . . . . . . . . . . . . 56 Redirected to Shielding 9 | . . . . . . . . 9 . . . . Regen/Repaired (Parts) 556 | . . . . . . 442 . 17 . . 10 87 Core Remaining (%) 65 | 100 . 43 . . . 33 . . . . 85 . Volleys Fired 237 | 7 . 19 11 28 12 . 15 41 15 4 11 74 Largest 4 | 2 . 2 2 2 2 . 2 2 3 3 3 4 Hottest 160 | 60 . 140 95 43 46 . 105 160 149 102 103 136 Shots Fired 521 | 14 . 31 19 48 19 . 16 58 47 12 31 226 Gun 433 | 14 . 26 11 48 14 . . 33 45 12 31 199 Cannon 62 | . . . 8 . . . 3 22 2 . . 27 Launcher 21 | . . . . . 5 . 13 3 . . . . Special 5 | . . 5 . . . . . . . . . . Kinetic 412 | 7 . 13 11 48 14 . . 8 42 12 31 226 Thermal 88 | 7 . 18 8 . . . 3 47 5 . . . Explosive 21 | . . . . . 5 . 13 3 . . . . Electromagnetic . | . . . . . . . . . . . . . Robot Hit Streak 23 | 2 . 9 6 23 5 . 11 18 4 4 7 19 Robot Miss Streak 6 | 2 . 2 3 3 2 . 2 4 6 1 5 5 Penetration Max 1 | . . . . . . . . . 1 . 1 1 Secondary Targets 5 | . . . . . . . . . . . . 5 Max Gunslinging Chain 1 | . . . . . . . . . . . . 1 Shots Hit Robots 324 | 7 . 21 10 39 14 . 15 43 23 7 15 130 Core Hits 180 | 4 . 9 6 17 9 . 15 24 9 3 7 77 Critical Kills 6 | . . . . . . . . . 2 1 1 2 Critical Parts Destroyed 13 | . . . . 2 . . . . 1 2 2 6 Critical Strikes 26 | . . . . 2 . . . 1 5 3 3 12 Burn 2 | . . . . . . . . 1 1 . . . Destroy 20 | . . . . 2 . . . . 4 3 3 8 Blast 4 | . . . . . . . . . . . . 4 Melee Attacks 12 | . . . . 1 . . 3 8 . . . . Impact 12 | . . . . 1 . . 3 8 . . . . Slashing . | . . . . . . . . . . . . . Piercing . | . . . . . . . . . . . . . Sneak Attacks 6 | . . . . . . . 2 4 . . . . Combat Hostiles . | . . . . . . . . . . . . . Follow-up Attacks . | . . . . . . . . . . . . . Damage Inflicted 10048 | 83 . 270 144 460 255 . 959 1982 757 184 904 4050 Guns 5576 | 83 . 197 44 460 142 . . 440 732 184 500 2794 Cannons 1343 | . . . 100 . . . 75 429 25 . . 714 Explosions 2385 | . . . . . 111 . 725 629 . . 378 542 Melee 643 | . . . . . . . 159 484 . . . . Ramming 29 | . . 1 . . 2 . . . . . 26 . Kinetic 5733 | 38 . 92 44 460 142 . . 72 693 184 500 3508 Thermal 1312 | 45 . 177 100 . . . 75 797 64 . . 54 Explosive 1654 | . . . . . 111 . 725 629 . . . 189 Electromagnetic 677 | . . . . . . . . . . . 378 299 Impact 643 | . . . . . . . 159 484 . . . . Slashing . | . . . . . . . . . . . . . Piercing . | . . . . . . . . . . . . . Highest Corruption 26 | . . . . . . . . 12 26 26 26 20 Average Corruption 17 | . . . . . . . . 11 24 26 26 12 Corruption Purged . | . . . . . . . . . . . . . Corruption Blocked . | . . . . . . . . . . . . . Effects 103 | . . . . . . . . 11 24 8 20 40 Message Errors 22 | . . . . . . . . 3 6 4 2 7 Matter Fused 20 | . . . . . . . . 3 4 1 7 5 Heat Flow Errors 9 | . . . . . . . . 3 4 . 1 1 Energy Discharges 12 | . . . . . . . . 1 4 1 2 4 Parts Rejected 2 | . . . . . . . . . . . . 2 Parts Fused 4 | . . . . . . . . . . . 1 3 Data Loss (minor) 12 | . . . . . . . . . 2 . 4 6 Data Loss (major) 1 | . . . . . . . . . . . . 1 Misfires 7 | . . . . . . . . . 2 1 1 3 Misdirections 1 | . . . . . . . . . 1 . . . Weapon Failures 13 | . . . . . . . . 1 1 1 2 8 Overload Shots . | . . . . . . . . . . . . . Overflow Damage 347 | . . . . . . . 23 284 . . 38 2 Projectiles . | . . . . . . . . . . . . . Explosions 46 | . . . . . . . 7 1 . . 36 2 Melee 301 | . . . . . . . 16 283 . . 2 . Knockbacks 13 | . . . . . . . 2 2 . . . 9 Impact 4 | . . . . . . . 2 2 . . . . Kinetic 7 | . . . . . . . . . . . . 7 Secondary 2 | . . . . . . . . . . . . 2 Self-Inflicted Damage 294 | . . . . . 30 . 54 16 . . 194 . Shots 7 | . . . . . 1 . 3 1 . . 2 . Rammed 1 | . . 1 . . . . . . . . . . Targets Rammed 3 | . . 1 . . 1 . . . . . 1 . Kicked 2 | . . . . . 1 . . . . . 1 . Crushed . | . . . . . . . . . . . . . Highest Temperature 477 | . . 329 361 14 14 . 28 477 303 105 260 232 Average Temperature 123 | . . 171 190 7 4 . 15 137 134 53 57 69 Received Heat Transfer 2870 | . . 378 138 165 171 . 114 310 9 18 9 1558 Effects 7 | . . 4 . . . . . 3 . . . . Shutdowns 2 | . . . . . . . . 2 . . . . Energy Bleed 3 | . . 3 . . . . . . . . . . Interference 1 | . . 1 . . . . . . . . . . Short Circuit 1 | . . . . . . . . 1 . . . . Siege Activations 1 | . . . . . . . . . . . . 1 Total Turns 25 | . . . . . . . . . . . . 25 Longest Duration 25 | . . . . . . . . . . . . 25 Martial Activations . | . . . . . . . . . . . . . Shielding Activations . | . . . . . . . . . . . . . Robots Disrupted . | . . . . . . . . . . . . . Combat Hostiles . | . . . . . . . . . . . . . Robots Corrupted 3 | . . . . . . . 1 2 . . . . Combat Hostiles . | . . . . . . . . . . . . . Parts Fried 10 | . . . . . . . 3 3 . . 3 1 Impact Corruptions 10 | . . . . . . . 1 8 . . 1 . Robots Melted 1 | . . . . . . . . 1 . . . . Combat Hostiles 1 | . . . . . . . . 1 . . . . Parts Melted 3 | . . . . . . . . 3 . . . . Heat Transferred 2559 | 100 . 400 148 . . . 111 1550 250 . . . Parts Sabotaged . | . . . . . . . . . . . . . Parts Stolen . | . . . . . . . . . . . . . Parts Stripped . | . . . . . . . . . . . . . Power Chain Reactions 2 | . . . . . . . . . . . 1 1 Alert | -11 -10 -10 -9 -9 -9 -9 -6 -6 -6 -6 -6 -5 ------- Run | Yrd Mat Min Mat Sto Rec Scr Fac Ext Cet Arc Hub Fac Maximum Alert Level 4 | . . . . . . . . 4 3 2 3 4 Low Security (%) 53 | 100 100 100 100 100 100 . 100 26 . . 57 . Level 1 9 | . . . . . . . . 24 . 11 12 19 Level 2 14 | . . . . . . . . 25 . 88 24 29 Level 3 19 | . . . . . . . . 12 100 . 5 49 Level 4 2 | . . . . . . . . 10 . . . 1 Level 5 . | . . . . . . . . . . . . . High Security . | . . . . . . . . . . . . . Max Security . | . . . . . . . . . . . . . Peak Influence 1367 | 5 . 40 76 141 47 . 105 1367 880 496 886 1159 Initial 750 | . . . . 18 47 . . . 750 334 152 434 Average 326 | . . 8 39 56 7 . 38 469 791 454 291 713 Influence Increases 5392 | 15 . 52 97 286 103 . 176 1837 340 193 1024 1269 Destroy 0b10 Robot/C 2280 | . . 40 60 200 60 . 100 820 160 80 240 520 Destroy 0b10 Robot/NC 180 | 15 . . . 5 5 . 5 55 10 . 30 55 Destroy Leader 354 | . . 10 20 50 . . 20 74 . . 82 98 Allied During Kill 1283 | . . . . . . . . 758 144 80 262 39 Successful Hack 34 | . . . . . 18 . . 14 . . . 2 Disable Machine 555 | . . . 15 15 . . 15 30 . 30 180 270 Destroy Structure 421 | . . 2 2 1 20 . 36 41 26 3 200 90 Lose Combat Pursuer 285 | . . . . 15 . . . 45 . . 30 195 Influence Decreases 4233 | 15 . 52 51 209 226 . 176 496 845 592 575 996 Entered New Map 1934 | . . . . 28 76 . . . 591 502 285 452 Time Decay 1807 | 15 . 52 41 161 138 . 176 416 214 70 150 374 Lost Part 212 | . . . 10 20 12 . . 20 . . . 150 Lost Ally 280 | . . . . . . . . 60 40 20 140 20 Squads Dispatched 28 | . . 1 . 1 . . 1 8 . . 7 10 Investigation 4 | . . 1 . . . . . 2 . . . 1 Extermination 1 | . . . . . . . . . . . . 1 Reinforcement 16 | . . . . 1 . . 1 5 . . 4 5 Assault 3 | . . . . . . . . 1 . . . 2 Garrison 4 | . . . . . . . . . . . 3 1 Intercept . | . . . . . . . . . . . . . Searches Triggered . | . . . . . . . . . . . . . Construction Impeded 8 | . . . . . . . 1 3 . . 1 3 Haulers Reinforced 1 | . . . . . . . . . . . 1 . Active Scanning Responses . | . . . . . . . . . . . . . Cargo Convoy Interrupts . | . . . . . . . . . . . . . Stealth | -11 -10 -10 -9 -9 -9 -9 -6 -6 -6 -6 -6 -5 --------- Run | Yrd Mat Min Mat Sto Rec Scr Fac Ext Cet Arc Hub Fac Distress Signals 11 | . . . 1 1 . . . 2 2 . 1 4 Communications Jammed . | . . . . . . . . . . . . . Distress Signals . | . . . . . . . . . . . . . Times Spotted 169 | . 1 11 6 15 3 . 5 46 10 3 10 59 Peak Tracking Total 15 | . 1 6 5 4 2 . 4 7 5 1 8 15 Tactical Retreats 8 | . . 1 . 1 . . . 1 . . 2 3 Traps | -11 -10 -10 -9 -9 -9 -9 -6 -6 -6 -6 -6 -5 ------- Run | Yrd Mat Min Mat Sto Rec Scr Fac Ext Cet Arc Hub Fac Traps Triggered 2 | . . . . . . . . . . . 1 1 Indirectly 1 | . . . . . . . . . . . . 1 Trap Hack Attempts . | . . . . . . . . . . . . . Triggered . | . . . . . . . . . . . . . Disarmed . | . . . . . . . . . . . . . Reprogrammed . | . . . . . . . . . . . . . Reused . | . . . . . . . . . . . . . Traps Extracted . | . . . . . . . . . . . . . Installed . | . . . . . . . . . . . . . Triggered . | . . . . . . . . . . . . . Machines | -11 -10 -10 -9 -9 -9 -9 -6 -6 -6 -6 -6 -5 ---------- Run | Yrd Mat Min Mat Sto Rec Scr Fac Ext Cet Arc Hub Fac Machines Disabled 40 | . . . 1 1 . . 1 3 2 2 12 18 Max in Single Turn 5 | . . . 1 1 . . 1 . 1 1 5 4 Network Hub 2 | . . . . . . . . . . . 2 . Machines Repaired . | . . . . . . . . . . . . . Machines Dismantled . | . . . . . . . . . . . . . Machines Sabotaged . | . . . . . . . . . . . . . Overloaded Fab Kills . | . . . . . . . . . . . . . Hacking | -11 -10 -10 -9 -9 -9 -9 -6 -6 -6 -6 -6 -5 --------- Run | Yrd Mat Min Mat Sto Rec Scr Fac Ext Cet Arc Hub Fac Machines Accessed 18 | . 1 1 1 1 3 2 . 6 1 . 1 1 Terminals 10 | . 1 . . . 3 . . 5 1 . . . Fabricators . | . . . . . . . . . . . . . Repair Stations . | . . . . . . . . . . . . . Recycling Units 2 | . . . . . . . . 1 . . . 1 Scanalyzers 1 | . . . 1 . . . . . . . . . Garrison Access 2 | . . . . 1 . . . . . . 1 . Total Hacks 42 | . 3 1 2 4 9 9 . 8 2 . 2 2 Successful 23 | . 1 1 1 . 3 9 . 6 . . . 2 Failed 18 | . 2 . . 4 6 . . 2 2 . 2 . Catastrophic 3 | . . . . . 1 . . . 1 . 1 . Database Lockouts 1 | . . . 1 . . . . . . . . . Manual 8 | . . . . 1 2 . . 1 1 . 1 2 Terminals 21 | . 3 . . . 9 . . 7 2 . . . Fabricators . | . . . . . . . . . . . . . Repair Stations . | . . . . . . . . . . . . . Recycling Units 3 | . . . . . . . . 1 . . . 2 Scanalyzers 2 | . . . 2 . . . . . . . . . Garrison Access 6 | . . . . 4 . . . . . . 2 . Terminal Hacks 19 | . 1 1 . . 3 9 . 5 . . . . Record 9 | . . . . . . 9 . . . . . . Part Schematic 1 | . . . . . 1 . . . . . . . Robot Analysis 2 | . 1 . . . 1 . . . . . . . Open Door 5 | . . 1 . . . . . 4 . . . . Patrol Status 1 | . . . . . 1 . . . . . . . Hauler Manifests 1 | . . . . . . . . 1 . . . . Fabricator Hacks . | . . . . . . . . . . . . . Repair Station Hacks . | . . . . . . . . . . . . . Recycling Unit Hacks . | . . . . . . . . . . . . . Scanalyzer 1 | . . . 1 . . . . . . . . . Retrieve Study 1 | . . . 1 . . . . . . . . . Garrison Access Hacks . | . . . . . . . . . . . . . Unauthorized Hacks 2 | . . . . . . . . 1 . . . 1 Terminals . | . . . . . . . . . . . . . Fabricators . | . . . . . . . . . . . . . Repair Stations . | . . . . . . . . . . . . . Recycling Units 2 | . . . . . . . . 1 . . . 1 Fedlink 1 | . . . . . . . . 1 . . . . Scrapoids 1 | . . . . . . . . . . . . 1 Scanalyzers . | . . . . . . . . . . . . . Garrison Access . | . . . . . . . . . . . . . Data Cores Recovered 1 | . . . . . . . . 1 . . . . Used . | . . . . . . . . . . . . . Hacking Detections 10 | . 1 . . 2 3 . . 1 2 . 1 . Full Trace Events . | . . . . . . . . . . . . . Feedback Events . | . . . . . . . . . . . . . Feedback Blocked . | . . . . . . . . . . . . . Robot Schematics Acquired . | . . . . . . . . . . . . . Robots Built . | . . . . . . . . . . . . . Authchips . | . . . . . . . . . . . . . Time . | . . . . . . . . . . . . . Total Robot Build Rating . | . . . . . . . . . . . . . Part Schematics Acquired 1 | . . . . . 1 . . . . . . . Parts Built . | . . . . . . . . . . . . . Authchips . | . . . . . . . . . . . . . Time . | . . . . . . . . . . . . . Total Part Build Rating . | . . . . . . . . . . . . . Part Studies Acquired 1 | . . . 1 . . . . . . . . . Parts Repaired . | . . . . . . . . . . . . . Time . | . . . . . . . . . . . . . Parts Recycled . | . . . . . . . . . . . . . Recycled Matter . | . . . . . . . . . . . . . Retrieved Matter . | . . . . . . . . . . . . . Retrieved Components . | . . . . . . . . . . . . . Parts Scanalyzed . | . . . . . . . . . . . . . Part Schematics Acquired . | . . . . . . . . . . . . . Parts Damaged . | . . . . . . . . . . . . . Bothacking | -11 -10 -10 -9 -9 -9 -9 -6 -6 -6 -6 -6 -5 ------------ Run | Yrd Mat Min Mat Sto Rec Scr Fac Ext Cet Arc Hub Fac Used RIF Installer . | . . . . . . . . . . . . . Robots Hacked . | . . . . . . . . . . . . . Non-combat . | . . . . . . . . . . . . . Combat . | . . . . . . . . . . . . . Robot Hacks Applied . | . . . . . . . . . . . . . Relay Couplers Released . | . . . . . . . . . . . . . Fabnet Peak Effective % . | . . . . . . . . . . . . . Robots Rewired 6 | . . . . . . . . 6 . . . . Allies Hacked . | . . . . . . . . . . . . . Hacks Repelled . | . . . . . . . . . . . . . Allies | -11 -10 -10 -9 -9 -9 -9 -6 -6 -6 -6 -6 -5 -------- Run | Yrd Mat Min Mat Sto Rec Scr Fac Ext Cet Arc Hub Fac Total Allies 20 | . . . . . . . . 15 5 . . . Largest Group 14 | . . . . . . . . 14 12 12 9 2 Highest-Rated Group 827 | . . . . . . . . 584 827 824 552 192 Highest-Rated Ally 159 | . . . . . . . . 159 159 156 96 96 Initial UFD Resources 34 | . . . . . . . 22 22 32 32 32 34 Total Orders 2 | . . . . . . . 1 1 . . . . ROAM 1 | . . . . . . . . 1 . . . . EXPLORE 1 | . . . . . . . 1 . . . . . Ally Attacks 341 | . . . . . . . . 214 47 11 44 25 Total Damage 10214 | . . . . . . . . 5498 1770 376 1326 1244 Kills 68 | . . . . . . . . 40 7 3 12 6 Allies Corrupted 2 | . . . . . . . 1 . . . 1 . Allies Melted 1 | . . . . . . . . . . . 1 . Intel | -11 -10 -10 -9 -9 -9 -9 -6 -6 -6 -6 -6 -5 ------- Run | Yrd Mat Min Mat Sto Rec Scr Fac Ext Cet Arc Hub Fac Active Infowar (turns) 6193 | . . 135 125 404 885 1348 312 1238 446 142 318 840 Optics 2351 | . . . . . . . . 605 446 142 318 840 Sensors 2736 | . . . 99 404 885 1348 . . . . . . Terrain 1311 | . . 135 125 404 647 . . . . . . . Traps 1309 | . . . . . . . 312 997 . . . . Robot Analysis Total 2 | . 1 . . . 1 . . . . . . . Derelict Logs Recovered 2 | . . 2 . . . . . . . . . . Drone Launches 2 | . . . . . . . 2 . . . . . Drone Recoveries . | . . . . . . . . . . . . . Exploration | -11 -10 -10 -9 -9 -9 -9 -6 -6 -6 -6 -6 -5 ------------- Run | Yrd Mat Min Mat Sto Rec Scr Fac Ext Cet Arc Hub Fac Turns Passed 8043 | 155 44 297 125 404 885 2623 493 1238 446 142 318 873 Spaces Moved 4418 | 74 28 132 68 190 486 1366 287 800 264 79 228 416 Core 64 | 1 . . . 3 . . . . . . . 60 Treads 669 | 73 28 128 30 117 . . . . . . . 293 Legs 3593 | . . . . 70 486 1366 287 800 264 79 228 13 Wheels 92 | . . 4 38 . . . . . . . . 50 Hover . | . . . . . . . . . . . . . Flight . | . . . . . . . . . . . . . Fastest Speed 50 | 50 160 90 90 120 120 190 114 114 120 120 120 50 Average Speed 153 | 158 160 163 134 157 172 190 133 116 120 120 120 142 Slowest Speed 350 | 160 160 240 240 350 190 190 260 187 120 120 120 190 Overloaded Moves . | . . . . . . . . . . . . . Propulsion Burnouts . | . . . . . . . . . . . . . Robots Hopped . | . . . . . . . . . . . . . Potential Cave-ins . | . . . . . . . . . . . . . Cave-ins Triggered . | . . . . . . . . . . . . . Exploration Rate (%) 43 | 6 8 31 9 35 92 82 12 77 78 84 34 20 Regions Visited 12 Branch Regions 8 Pre-discovered Areas 3 | . . 1 . . . 2 . . . . . . Known Exits Taken 1 | . . . 1 . . . . . . . . . Unknown Exits Taken 11 | 1 1 1 . 1 1 1 1 1 1 1 1 . Scrap Searched 3 | . . 1 . . . 2 . . . . . . Spaces Dug 3 | . . . 1 . . . . . . . . 2 Terrain Destroyed 478 | . . 2 2 . 27 . 43 6 6 5 329 58 Melee . | . . . . . . . . . . . . . Projectile 61 | . . 2 2 . . . . . 6 5 7 39 AOE 417 | . . . . . 27 . 43 6 . . 322 19 Terrain Rammed . | . . . . . . . . . . . . . Walls Destroyed . | . . . . . . . . . . . . . Machines Disabled . | . . . . . . . . . . . . . Actions | -11 -10 -10 -9 -9 -9 -9 -6 -6 -6 -6 -6 -5 --------- Run | Yrd Mat Min Mat Sto Rec Scr Fac Ext Cet Arc Hub Fac Total 5227 | 95 27 171 83 249 512 1399 372 1047 369 120 247 536 Wait 255 | . . 5 . 5 4 . 57 84 63 34 3 . Move 4406 | 73 27 131 67 189 485 1365 286 799 263 78 227 416 Hop . | . . . . . . . . . . . . . Pick Up 67 | 7 . 4 1 4 3 14 2 14 7 1 . 10 Fast Attach 48 | 6 . 2 2 9 3 3 6 6 4 . 2 5 Attach 26 | 1 . 2 1 . 1 1 1 2 . . . 17 Detach . | . . . . . . . . . . . . . Swap 30 | . . 3 1 3 1 1 . 13 4 1 1 2 Drop 87 | 1 . 4 . 10 2 13 2 26 13 2 2 12 Fire 237 | 7 . 19 11 28 12 . 15 41 15 4 11 74 Melee 12 | . . . . 1 . . 3 8 . . . . Ram . | . . . . . . . . . . . . . Kick 2 | . . . . . 1 . . . . . 1 . Crush 1 | . . 1 . . . . . . . . . . Escape Stasis . | . . . . . . . . . . . . . Rewire 56 | . . . . . . 2 . 54 . . . . Trap . | . . . . . . . . . . . . . Miscellaneous . | . . . . . . . . . . . . . Route ------- -11/Scrapyard -10/Materials -10/Mines -9/Materials -9/Storage -9/Recycling (discovered 2 exits: [*Fac] / *Scr) -9/Scraptown -6/Factory (discovered 3 exits: *Fac / [*Low] / *Ext) -6/Extension (discovered 3 exits: *Fac x2 / *Cet) -6/Cetus (discovered 3 exits: *Fac x2 / [*Arc]) -6/Archives (discovered 2 exits: *Hub x2) -6/Hub_04(d) (discovered 2 exits: *Fac x2) -5/Factory History --------- Turn | Location | Event 19 | -11/Scrapyard | Discovered new exit (range 15) 156 | -11/Scrapyard | Entered Materials 166 | -10/Materials | Discovered new exit (range 15) 200 | -10/Materials | Entered Mines 244 | -10/Mines | Learned location of Storage (-9) 312 | -10/Mines | Build established: Mutant 331 | -10/Mines | Assembled infested the area 386 | -10/Mines | Discovered new exit (range 13) 431 | -10/Mines | Learned location of 1 exit from Materials 454 | -10/Mines | Met a Derelict shopkeep closing up shop 495 | -10/Mines | Core integrity fell below 50% 497 | -10/Mines | Entered Materials 497 | -9/Materials | Evolved 2 slots: Propulsion x1, Utility x1 498 | -9/Materials | Identified exit to Storage 522 | -9/Materials | Lost 3 parts (2n1w) 529 | -9/Materials | Central database locked down 622 | -9/Materials | Entered Storage 1021 | -9/Storage | Used back door to open Recycling access 1021 | -9/Storage | Discovered new exit (range 5) 1026 | -9/Storage | Entered Recycling 1209 | -9/Recycling | Build established: Scavenger-Mutant 1287 | -9/Recycling | Discovered new exit (range 15) 1653 | -9/Recycling | Core integrity fell below 50% 1707 | -9/Recycling | Lost 4 parts (1n1u2w) 1863 | -9/Recycling | Scanned before Scraplab entrance 1892 | -9/Recycling | Entered Scraplab 1907 | -9/Recycling | Discovered new exit (range 3) 1911 | -9/Recycling | Entered Scraptown 1976 | -9/Scraptown | Build established: Mutant 2334 | -9/Scraptown | Visited Fellowship of the Rings 2399 | -9/Scraptown | Visited CR-KLE's Repair Center 2413 | -9/Scraptown | CR-KLE repaired 8 parts 2449 | -9/Scraptown | Visited Cyclists 2518 | -9/Scraptown | Visited SPCMW 2600 | -9/Scraptown | Visited TADAMA 2687 | -9/Scraptown | Visited Awakened 2750 | -9/Scraptown | Visited UFD Registry 2750 | -9/Scraptown | Registered with UFD as "Nukeback" 2799 | -9/Scraptown | Visited Shadow of the Wyrm 2862 | -9/Scraptown | Entered Cyclist Reading Room 2869 | -9/Scraptown | Learned location of Exiles (-9) 2869 | -9/Scraptown | Learned location of Zion (-6) 3203 | -9/Scraptown | Visited Scrapoid Research Area 3249 | -9/Scraptown | Visited Scrapoid Pod Storage 3260 | -9/Scraptown | Found Scrapoid Pod 3299 | -9/Scraptown | Visited LU-1G1's Boring Crew 3538 | -9/Scraptown | Visited Curators Association 3588 | -9/Scraptown | Visited Research Penetration Think Tank 3628 | -9/Scraptown | Visited Observation Area 3692 | -9/Scraptown | Visited Cartography Club 3759 | -9/Scraptown | Found Surveybot 17 Chip 3861 | -9/Scraptown | Visited Botcube Research 3878 | -9/Scraptown | Found Botcube 4136 | -9/Scraptown | Discovered new exit (range 3) 4297 | -9/Scraptown | Visited Scrap Suit Storage 4315 | -9/Scraptown | Found Scrap Suit 4434 | -9/Scraptown | Met Optimus 4434 | -9/Scraptown | Accepted into 0bPrime 4534 | -9/Scraptown | Entered Factory 4534 | -6/Factory | Evolved 6 slots: Propulsion x3, Utility x2, Weapon x1 4812 | -6/Factory | Discovered new exit (range 15) 4886 | -6/Factory | Discovered new exit (range 39) 4887 | -6/Factory | Discovered new exit (range 37) 4963 | -6/Factory | Build established: Scavenger-Mutant 5027 | -6/Factory | Entered Extension 5104 | -6/Extension | Rescued A7 5272 | -6/Extension | Loaded intel: 1 recycling unit location 5277 | -6/Extension | Rescued a captive Derelict 5284 | -6/Extension | Rescued a captive Derelict 5426 | -6/Extension | Scrapoid Pod released 06E07-D (x5) 5637 | -6/Extension | Spotted B-75 Beast 5646 | -6/Extension | Allies destroyed B-75 Beast 5649 | -6/Extension | Spotted B-75 Beast 5657 | -6/Extension | Allies destroyed B-75 Beast 5727 | -6/Extension | First assault squad dispatched 5732 | -6/Extension | Botcube activated 5750 | -6/Extension | Botcube completed mutation into treaded form, armed with 1 cannon 5760 | -6/Extension | Discovered new exit (range 3) 5811 | -6/Extension | Rescued a captive Derelict 6009 | -6/Extension | System corruption reached 10% 6153 | -6/Extension | Discovered new exit (range 20) 6153 | -6/Extension | Discovered new exit (range 20) 6265 | -6/Extension | Entered Cetus 6265 | -6/Cetus | Accompanied by 9 allies (A7) 6270 | -6/Cetus | Acquired a Cetus Manufacturing Module code from A7 6282 | -6/Cetus | Spotted Cetus Guard 6282 | -6/Cetus | Spotted Cetus Guard 6285 | -6/Cetus | Spotted Cetus Guard 6285 | -6/Cetus | Spotted Cetus Guard 6299 | -6/Cetus | Allies destroyed Cetus Guard 6299 | -6/Cetus | Allies destroyed Cetus Guard 6306 | -6/Cetus | Allies destroyed Cetus Guard 6311 | -6/Cetus | Allies destroyed Cetus Guard 6364 | -6/Cetus | Discovered new exit (range 20) 6446 | -6/Cetus | Started Cetus Manufacturing Module 6471 | -6/Cetus | Manufactured an Enhanced Grunt 6496 | -6/Cetus | Manufactured an Enhanced Grunt 6521 | -6/Cetus | Manufactured an Enhanced Grunt 6546 | -6/Cetus | Manufactured an Enhanced Grunt 6551 | -6/Cetus | Discovered new exit (range 19) 6571 | -6/Cetus | Manufactured an Enhanced Grunt 6576 | -6/Cetus | Spotted Cetus Guard 6577 | -6/Cetus | Spotted Cetus Guard 6586 | -6/Cetus | Allies destroyed Cetus Guard 6587 | -6/Cetus | Destroyed Cetus Guard 6591 | -6/Cetus | Spotted Cetus Guard 6593 | -6/Cetus | Build established: Scavenger-Tank 6595 | -6/Cetus | Spotted Cetus Guard 6603 | -6/Cetus | Allies destroyed Cetus Guard 6606 | -6/Cetus | Destroyed Cetus Guard 6609 | -6/Cetus | Discovered new exit (range 20) 6621 | -6/Cetus | Met Revision 17 6711 | -6/Cetus | Entered Archives 6711 | -6/Archives | Accompanied by 12 allies (A7) 6740 | -6/Archives | Discovered new exit (range 20) 6754 | -6/Archives | Discovered new exit (range 20) 6853 | -6/Archives | Entered Hub_04(d) 6853 | -6/Hub_04(d) | Accompanied by 9 allies 6968 | -6/Hub_04(d) | Garrison activated, responded to threat 7104 | -6/Hub_04(d) | Discovered new exit (range 14) 7110 | -6/Hub_04(d) | Lost 6 allies 7130 | -6/Hub_04(d) | Discovered new exit (range 7) 7154 | -6/Hub_04(d) | Network Hub disabled 7162 | -6/Hub_04(d) | Network Hub disabled 7171 | -6/Hub_04(d) | Entered Factory 7171 | -5/Factory | Accompanied by 2 allies 7171 | -5/Factory | Evolved 2 slots: Utility x1, Weapon x1 7199 | -5/Factory | System corruption reached 10% 7771 | -5/Factory | First assault squad dispatched 7814 | -5/Factory | Garrison activated, responded to threat 7911 | -5/Factory | Destroyed 7 combat bots 7955 | -5/Factory | Lost 10 parts (1p4n1u4w) 8011 | -5/Factory | Released all parts (8) 8014 | -5/Factory | Core integrity fell below 50% 8026 | -5/Factory | Core integrity fell below 20% 8042 | -5/Factory | Lost 4 parts (1n2u1w) 8044 | -5/Factory | Destroyed by C-35 Carver with Carbide Saw Last Messages --------------- 08031_ Recycling unit begins matter transfer process. 08031_ System corrupted: Energy discharge (-24). 08031_ Connecting with Recycling Unit... 08031_ Current location identified: Factory >>Force(Scrapoids) UFD!MEMBER UFD!ALLOCATE<34-3=31> UFD!ETA<18> UFD!SANITIZING UFD!... 08031_ ALERT: Suspicious activity at Recycling Unit F002. Dispatching Investigation squad. 08032_ R-10 Processor inserts Com. Wheel into recycling unit. 08035_ R-10 Processor inserts Lgt. Angular Momentum Engine into recycling unit. 08036_ Recycling unit begins recycling process. 08038_ R-10 Processor inserts Adv. Heat Sink into recycling unit. 08043_ Hcp. Matter Pod severed. [Achievement: I Think I Know What's Going On] [Achievement: Overachiever] Map ----- +----------------------------------------------------+ | ?????????????????????????????????????????????????? | | ?????????????????????????????????????????????????? | | ?????????????????????????????????????????????????? | | ?????????????????????????????????????????????????? | | ?????????????????????????????????????????????????? | | ?????????????????????????????????????????????????? | | ?????????????????????????????????????????????????? | | ?????????????????????????????????????????????????? | | ?????????????????????????????????????????????????? | | ?????????????????????????????????????????????????? | | ?????????????????????????????????????????????????? | | ?????????????????????????????????????????????????? | | ?????????????????????????????????????????????????? | | ?????????????????????????????????????????????????? | | ?????????????????????????????????????????????????? | | ?????????????????????????????????????????????????? | | ?????????????????????????????????????????????????? | | ?????????????????????????????????????????????????? | | ?????????????????????????????????????????????????? | | ?????????????????????????????????????????????????? | | ?????????????????????????????????????????????????? | | ??????????????????##############?????????????????? | | ??????????????????# #?????????????????? | | ??????????????????# #?????????????????? | | ??????????????????# cc #?????????????????? | | ??????????????????+ c""@ #####+############# | | ??????????????????# p"" # | | ??????????????????# """ # | | ??????????????????# """ # | | ??????????????????# """ # | | ????????????????? + "" # | | ?????????????????## Y" # | | ??????????????????# R"" # | | ??????????????????# # #?######### | | ??????????????????#########g#### #? ?????? | | ??????????????????????# # ""??????? | | ??????????????????????# # ""??????? | | ??????????????????????# %! / ""??????? | | ??????????????????????#!!! !! # ""??????? | | ??????????????????????#!!! !! #?????????? | | ??????????????????????#!! #?????????? | | ??????????????????????# """ #?????????? | | ??????????????????????# """ #?????????? | | ??????????????????????# """ #?????????? | | ??????????????????????# #?????????? | | ??????????????????????# """ #?????????? | | ??????????????????????+ """ #?????????? | | ??????????????????????# """ #?????????? | | ??????????????????????# * #?????????? | | ??????????????????????# #??#+###### | +----------------------------------------------------+ Best States ------------- Heat Dissipation 71 Energy Generation 25 Energy Capacity 350 Matter Stores 300 Matter Capacity 300 Sight Range 20 Robot Scan Range 14 Terrain Scan Range 16 Terrain Scan Density 10 Additional Mass Support 6 Armor Coverage 450 Core Shielding 20 Power Shielding 66 Evasion (%) 55 Recoil Reduction 6 Item Schematics ----------------- Adv. Treads | -9/Recycling | Hacked Robot Schematics ------------------ None Fabricated ------------ Nothing Repaired ---------- Nothing Studied --------- Lgt. Assault Rifle | -9/Materials | Hacked Alien Tech Used ----------------- None Achievements -------------- Frankenstein I Think I Know What's Going On Leap Before You Look Overachiever Challenges ------------ None Game ------ Seed RecyclingJunkStreamer Manual? 0 Play Time 01:23:13 Cumulative 206.3 hours Start 2026.09.22 @ 19:02:52 End 2026.09.22 @ 20:48:54 Sessions 1 Manual Loads 0 Difficulty Rogue Special Mode None Game No. 25 Rogue 9 Adventurer 2 Explorer 14 Win Type - Total 7 Types 4/0/1/0/0/0/0/0/0/2 Lore% 50 Gallery% 49 Achievement% 50 Wizard Run 0 Options --------- Layout 0 ASCII 0 Keyboard 0 Movement Mouse Keybinds 0 Fullscreen 1 Font 18/Cog Map View 76x50 Zoom Use 0% Tactical HUD 1 Map Filters NONE Filters NONE Steam 1 RUN: ed3f74bc-d4a5-41e1-93ac-ae87f16d2a2b